lending/lending_fUSD_20250122
["ID","MTS","AMOUNT","RATE_DAILY","PERIOD"]
[349971054,1737541860582,-500.0,0.00021083,2]
[349971055,1737541860591,-416.99793263,0.00021083,2]
[349971056,1737541860600,-500.0,0.00021083,2]
[349971057,1737541860610,-500.0,0.00021083,2]
[349971058,1737541860619,-649.13,0.00021083,2]
[349971059,1737541860629,-500.0,0.00021083,2]
[349971060,1737541860638,-500.0,0.00021083,2]
[349971061,1737541860647,-803.34,0.00021083,2]
[349971062,1737541860656,-500.0,0.00021083,2]
[349971063,1737541860665,-558.09,0.00021083,2]
[349971064,1737541860674,-685.56,0.00021083,2]
[349971065,1737541860684,-500.0,0.00021083,2]
[349971066,1737541860693,-361.81867229,0.00021083,2]
[349971067,1737541860702,-500.0,0.00021083,2]
[349971068,1737541860711,-551.34,0.00021083,2]
[349971069,1737541860720,-500.0,0.00021083,2]
[349971070,1737541860729,-500.0,0.00021083,2]
[349971071,1737541860739,-576.63,0.00021083,2]
[349971072,1737541860748,-500.0,0.00021083,2]
[349971073,1737541860757,-500.0,0.00021083,2]
[349971074,1737541860766,-645.06,0.00021083,2]
[349971075,1737541860775,-613.56,0.00021083,2]
[349971076,1737541860784,-500.0,0.00021083,2]
[349971077,1737541860794,-741.78,0.00021083,2]
[349971078,1737541860803,-572.14,0.00021083,2]
[349971079,1737541860814,-808.38,0.00021083,2]
[349971080,1737541860825,-500.0,0.00021083,2]
[349971081,1737541860835,-500.0,0.00021083,2]
[349971082,1737541860844,-500.0,0.00021083,2]
[349971083,1737541860855,-500.0,0.00021083,2]
[349971084,1737541860864,-500.0,0.00021083,2]
[349971085,1737541860874,-500.0,0.00021083,2]
[349971086,1737541860883,-792.14,0.00021083,2]
[349971087,1737541860894,-674.1,0.00021083,2]
[349971088,1737541860903,-500.0,0.00021083,2]
[349971089,1737541860913,-864.89,0.00021083,2]
[349971090,1737541860924,-740.39,0.00021083,2]
[349971091,1737541860933,-500.0,0.00021083,2]
[349971092,1737541860943,-500.0,0.00021083,2]
[349971093,1737541860951,-500.0,0.00021083,2]
[349971094,1737541860961,-510.24803356,0.00021083,2]
[349971095,1737541860971,-500.0,0.00021083,2]
[349971096,1737541860982,-500.0,0.00021083,2]
[349971097,1737541860992,-500.0,0.00021083,2]
[349971098,1737541861002,-500.0,0.00021083,2]
[349971099,1737541861011,-500.0,0.00021083,2]
[349971100,1737541861020,-680.5,0.00021083,2]
[349971101,1737541861030,-500.0,0.00021083,2]
[349971102,1737541861041,-500.0,0.00021083,2]
[349971103,1737541861050,-1854.8,0.00021083,2]
[349971104,1737541861060,-4049.8,0.00021083,2]
[349971105,1737541861070,-500.0,0.00021083,2]
[349971106,1737541861082,-730.82,0.00021083,2]
[349971107,1737541861091,-7307.34,0.00021083,2]
[349971108,1737541861101,-822.78,0.00021083,2]
[349971109,1737541861111,-985.38,0.00021083,2]
[349971110,1737541861120,-500.0,0.00021083,2]
[349971111,1737541861130,-764.97,0.00021083,2]
[349971112,1737541861140,-617.66,0.00021083,2]
[349971113,1737541861150,-2071.46,0.00021083,2]
[349971114,1737541861160,-500.0,0.00021083,2]
[349971115,1737541861170,-569.32355991,0.00021083,2]
[349971116,1737541861179,-277.38,0.00021083,2]
[349971117,1737541861189,-521.86,0.00021083,2]
[349971118,1737541861198,-500.0,0.00021083,2]
[349971119,1737541861207,-934.2,0.00021083,2]
[349971120,1737541861216,-500.0,0.00021083,2]
[349971121,1737541861226,-500.0,0.00021083,2]
[349971122,1737541861235,-1295.45,0.00021083,2]
[349971123,1737541861244,-1443.13,0.00021083,2]
[349971124,1737541861254,-500.0,0.00021083,2]
[349971125,1737541861264,-1043.46,0.00021083,2]
[349971126,1737541861274,-1000.0,0.00021083,2]
[349971127,1737541861283,-706.31,0.00021083,2]
[349971128,1737541861293,-734.78,0.00021083,2]
[349971129,1737541861303,-500.0,0.00021083,2]
[349971130,1737541861312,-1024.34,0.00021083,2]
[349971131,1737541861322,-2026.46,0.00021083,2]
[349971132,1737541861334,-1666.71,0.00021083,2]
[349971133,1737541861344,-856.41,0.00021083,2]
[349971134,1737541861353,-500.0,0.00021083,2]
[349971135,1737541861363,-500.0,0.00021083,2]
[349971136,1737541861373,-797.53,0.00021083,2]
[349971137,1737541861382,-500.0,0.00021083,2]
[349971138,1737541861391,-500.0,0.00021083,2]
[349971139,1737541861401,-500.0,0.00021084,2]
[349971140,1737541861410,-500.0,0.00021084,2]
[349971141,1737541861419,-500.0,0.00021084,2]
[349971142,1737541861428,-504.37,0.00021084,2]
[349971143,1737541861438,-165.237532,0.00021084,2]
[349971144,1737541861448,-205.78419618,0.00021122,2]
[349971145,1737541861457,-151.0,0.00021157,2]
[349971146,1737541861467,-500.0,0.00021173,2]
[349971147,1737541861476,-1000.0,0.00021173,2]
[349971148,1737541861485,-268.35,0.00021178,2]
[349971149,1737541861494,-167.06039711,0.00021204,2]
[349971150,1737541861503,-168.35,0.00021225,2]
[349971151,1737541861513,-155.41877841,0.00021233,2]
[349971152,1737541861522,-205.78419618,0.00021233,2]
[349971153,1737541861532,-654.69,0.00021257,2]
[349971154,1737541861542,-1545.87,0.00021257,2]
[349971155,1737541861551,-907.88,0.00021257,2]
[349971156,1737541861560,-1380.69,0.00021257,2]
[349971157,1737541861569,-1850.42,0.00021257,2]
[349971158,1737541861581,-1516.91,0.00021257,2]
[349971159,1737541861591,-953.88,0.00021257,2]
[349971160,1737541861600,-1013.98,0.00021257,2]
[349971161,1737541861610,-722.46,0.00021257,2]
[349971162,1737541861619,-1164.88,0.00021257,2]
[349971163,1737541861629,-544.79690957,0.00021257,2]
[349971164,1737541861768,-250.0,0.00018884,2]
[349971165,1737541861778,-500.0,0.00019439,2]
[349971166,1737541861788,-778.51,0.00020533,2]
[349971167,1737541861797,-778.51,0.00020807,2]
[349971168,1737541861807,-778.51,0.00021081,2]
[349971169,1737541861818,-357.33309043,0.00021257,2]
[349971170,1737541861835,-1003.6,0.00021257,2]
[349971171,1737541861845,-656.77,0.00021257,2]
[349971172,1737541861855,-1484.76,0.00021257,2]
[349971173,1737541861865,-500.0,0.00021257,2]
[349971174,1737541861875,-1336.41,0.00021257,2]
[349971175,1737541861885,-2006.54,0.00021257,2]
[349971176,1737541861895,-500.0,0.00021257,2]
[349971177,1737541861905,-677.86,0.00021257,2]
[349971178,1737541861916,-886.2,0.00021257,2]
[349971179,1737541861928,-2151.01,0.00021257,2]
[349971180,1737541861938,-2824.22,0.00021257,2]
[349971181,1737541861948,-3414.46,0.00021257,2]
[349971182,1737541861958,-841.92,0.00021257,2]
[349971183,1737541861970,-562.537247,0.00021257,2]
[349971184,1737541861981,-500.0,0.00021257,2]
[349971185,1737541861992,-944.29,0.00021257,2]
[349971186,1737541862002,-1011.31,0.00021257,2]
[349971187,1737541862011,-886.83,0.00021257,2]
[349971188,1737541862020,-956.347784,0.00021257,2]
[349971189,1737541862029,-3466.56,0.00021257,2]
[349971190,1737541862039,-1869.72,0.00021257,2]
[349971191,1737541862048,-500.0,0.00021257,2]
[349971192,1737541862057,-1416.25,0.00021257,2]
[349971193,1737541862067,-689.18,0.00021257,2]
[349971194,1737541862076,-1332.39,0.00021257,2]
[349971195,1737541862087,-176.024016,0.00021257,2]
[349971196,1737541862097,-2217.4,0.00021257,2]
[349971197,1737541862107,-806.82,0.00021257,2]
[349971198,1737541862116,-154.704158,0.00021257,2]
[349971199,1737541862126,-500.0,0.00021257,2]
[349971200,1737541862136,-1001.78,0.00021257,2]
[349971201,1737541862146,-1215.48,0.00021257,2]
[349971202,1737541862155,-500.0,0.00021257,2]
[349971203,1737541862165,-2702.1,0.00021257,2]
[349971204,1737541862175,-835.57,0.00021257,2]
[349971205,1737541862184,-459.94,0.00021271,2]
[349971206,1737541862194,-500.0,0.00021285,2]
[349971207,1737541862203,-3945.092999,0.000213,2]
[349971208,1737541862213,-1871.25,0.000213,2]
[349971209,1737541862222,-864.4920526,0.00021309,2]
[349971210,1737541862231,-184.2019563,0.0002132,2]
[349971211,1737541862241,-472.86792644,0.00021331,2]
[349971212,1737541862250,-2109.0,0.0002134,2]
[349971213,1737541862260,-205.78419618,0.00021344,2]
[349971214,1737541862269,-778.51,0.00021355,2]
[349971215,1737541862279,-500.0,0.00021356,2]
[349971216,1737541862288,-500.0,0.00021356,2]
[349971217,1737541862297,-500.0,0.00021356,2]
[349971218,1737541862307,-655.58,0.00021356,2]
[349971219,1737541862317,-720.75,0.00021356,2]
[349971220,1737541862326,-500.0,0.00021356,2]
[349971221,1737541862337,-510.91,0.00021356,2]
[349971222,1737541862346,-500.0,0.00021356,2]
[349971223,1737541862355,-500.0,0.00021356,2]
[349971224,1737541862365,-500.0,0.00021356,2]
[349971225,1737541862374,-589.74,0.00021356,2]
[349971226,1737541862383,-708.62,0.00021356,2]
[349971227,1737541862393,-500.0,0.00021356,2]
[349971228,1737541862402,-625.44,0.00021356,2]
[349971229,1737541862411,-500.0,0.00021356,2]
[349971230,1737541862421,-500.0,0.00021356,2]
[349971231,1737541862430,-500.0,0.00021356,2]
[349971232,1737541862439,-550.34,0.00021356,2]
[349971233,1737541862449,-500.0,0.00021356,2]
[349971234,1737541862458,-834.71,0.00021356,2]
[349971235,1737541862467,-500.0,0.00021356,2]
[349971236,1737541862476,-902.73,0.00021356,2]
[349971237,1737541862485,-872.01,0.00021356,2]
[349971238,1737541862495,-500.0,0.00021356,2]
[349971239,1737541862504,-619.72,0.00021356,2]
[349971240,1737541862513,-500.0,0.00021356,2]
[349971241,1737541862523,-876.53,0.00021356,2]
[349971242,1737541862533,-500.0,0.00021356,2]
[349971243,1737541862542,-613.46,0.00021356,2]
[349971244,1737541862551,-403.64937335,0.00021356,2]
[349971245,1737541862561,-570.90527668,0.00021356,2]
[349971246,1737541862570,-722.25,0.00021356,2]
[349971247,1737541862580,-500.0,0.00021356,2]
[349971248,1737541862590,-668.05,0.00021356,2]
[349971249,1737541862599,-675.35,0.00021356,2]
[349971250,1737541862608,-677.79,0.00021356,2]
[349971251,1737541862617,-544.94,0.00021356,2]
[349971252,1737541862626,-553.72,0.00021356,2]
[349971253,1737541862769,-603.56,0.00021356,2]
[349971254,1737541862778,-783.76,0.00021356,2]
[349971255,1737541862788,-500.0,0.00021356,2]
[349971256,1737541862797,-575.54,0.00021356,2]
[349971257,1737541862806,-1909.22,0.00021356,2]
[349971258,1737541862817,-1033.66,0.00021356,2]
[349971259,1737541862827,-1473.85,0.00021356,2]
[349971260,1737541862838,-693.15,0.00021356,2]
[349971261,1737541862848,-1568.94,0.00021356,2]
[349971262,1737541862859,-551.67,0.00021356,2]
[349971263,1737541862870,-3589.15,0.00021356,2]
[349971264,1737541862880,-638.09,0.00021356,2]
[349971265,1737541862889,-1417.99,0.00021356,2]
[349971266,1737541862901,-500.0,0.00021356,2]
[349971267,1737541862911,-174.36035295,0.00021356,2]
[349971268,1737541862951,-549.73316218,0.00021356,2]
[349971269,1737541862962,-459.46896845,0.00021356,2]
[349971270,1737541863192,-1203.61751642,0.00021356,2]
[349971271,1737541863203,-3484.74,0.00021356,2]
[349971272,1737541863215,-1031.11,0.00021356,2]
[349971273,1737541863225,-560.81361555,0.00021356,2]
[349971274,1737541863236,-1387.85,0.00021356,2]
[349971275,1737541863246,-500.0,0.00021356,2]
[349971276,1737541863255,-2015.76,0.00021356,2]
[349971277,1737541863265,-590.43,0.00021356,2]
[349971278,1737541863275,-500.0,0.00021356,2]
[349971279,1737541863286,-158.20603474,0.00021356,2]
[349971280,1737541863297,-2072.9,0.00021356,2]
[349971281,1737541863307,-1138.61,0.00021356,2]
[349971282,1737541863317,-2193.32,0.00021356,2]
[349971283,1737541863326,-1037.28,0.00021356,2]
[349971284,1737541863338,-1217.24,0.00021356,2]
[349971285,1737541863348,-589.16,0.00021356,2]
[349971286,1737541863357,-500.0,0.00021356,2]
[349971287,1737541863367,-500.0,0.00021356,2]
[349971288,1737541863376,-738.06,0.00021356,2]
[349971289,1737541863385,-516.2,0.00021356,2]
[349971290,1737541863396,-530.64,0.00021356,2]
[349971291,1737541863407,-620.17,0.00021356,2]
[349971292,1737541863417,-1951.53,0.00021356,2]
[349971293,1737541863427,-500.0,0.00021356,2]
[349971294,1737541863437,-2154.26,0.00021356,2]
[349971295,1737541863446,-500.0,0.00021356,2]
[349971296,1737541863456,-500.0,0.00021356,2]
[349971297,1737541863467,-500.0,0.00021356,2]
[349971298,1737541863477,-500.0,0.00021356,2]
[349971299,1737541863488,-500.0,0.00021356,2]
[349971300,1737541863498,-500.0,0.00021356,2]
[349971301,1737541863508,-752.45,0.00021356,2]
[349971302,1737541863518,-576.31,0.00021356,2]
[349971303,1737541863528,-628.0,0.00021356,2]
[349971304,1737541863539,-571.59,0.00021356,2]
[349971305,1737541863549,-1387.31,0.00021356,2]
[349971306,1737541863560,-501.03,0.00021356,2]
[349971307,1737541863571,-500.0,0.00021356,2]
[349971308,1737541863583,-1834.49,0.00021356,2]
[349971309,1737541863593,-500.0,0.00021356,2]
[349971310,1737541863603,-632.98,0.00021356,2]
[349971311,1737541863612,-500.0,0.00021357,2]
[349971312,1737541863623,-500.0,0.00021357,2]
[349971313,1737541863633,-500.0,0.00021357,2]
[349971314,1737541863643,-679.64,0.00021357,2]
[349971315,1737541863653,-500.0,0.00021357,2]
[349971316,1737541863663,-500.0,0.00021357,2]
[349971317,1737541863673,-500.0,0.00021357,2]
[349971318,1737541863682,-649.13,0.00021357,2]
[349971319,1737541863692,-500.0,0.00021357,2]
[349971320,1737541863702,-500.0,0.00021357,2]
[349971321,1737541863712,-803.34,0.00021357,2]
[349971322,1737541863722,-500.0,0.00021357,2]
[349971323,1737541863732,-558.09,0.00021357,2]
[349971324,1737541863742,-685.56,0.00021357,2]
[349971325,1737541863752,-500.0,0.00021357,2]
[349971326,1737541863762,-500.0,0.00021357,2]
[349971327,1737541863772,-551.34,0.00021357,2]
[349971328,1737541863782,-500.0,0.00021357,2]
[349971329,1737541863791,-500.0,0.00021357,2]
[349971330,1737541863802,-576.63,0.00021357,2]
[349971331,1737541863812,-500.0,0.00021357,2]
[349971332,1737541863823,-500.0,0.00021357,2]
[349971333,1737541863835,-645.06,0.00021357,2]
[349971334,1737541863844,-613.56,0.00021357,2]
[349971335,1737541863854,-500.0,0.00021357,2]
[349971336,1737541863866,-741.78,0.00021357,2]
[349971337,1737541863876,-572.14,0.00021357,2]
[349971338,1737541863886,-808.38,0.00021357,2]
[349971339,1737541863896,-500.0,0.00021357,2]
[349971340,1737541863906,-464.48266129,0.00021357,2]
[349971341,1737541863916,-500.0,0.00021357,2]
[349971342,1737541863926,-500.0,0.00021357,2]
[349971343,1737541863937,-500.0,0.00021357,2]
[349971344,1737541863947,-500.0,0.00021357,2]
[349971345,1737541863957,-792.14,0.00021357,2]
[349971346,1737541863967,-674.1,0.00021357,2]
[349971347,1737541863977,-500.0,0.00021357,2]
[349971348,1737541863987,-864.89,0.00021357,2]
[349971349,1737541863997,-740.39,0.00021357,2]
[349971350,1737541864008,-500.0,0.00021357,2]
[349971351,1737541864018,-500.0,0.00021357,2]
[349971352,1737541864028,-500.0,0.00021357,2]
[349971353,1737541864038,-500.0,0.00021357,2]
[349971354,1737541864048,-500.0,0.00021357,2]
[349971355,1737541864058,-500.0,0.00021357,2]
[349971356,1737541864068,-500.0,0.00021357,2]
[349971357,1737541864077,-500.0,0.00021357,2]
[349971358,1737541864088,-680.5,0.00021357,2]
[349971359,1737541864099,-500.0,0.00021357,2]
[349971360,1737541864108,-500.0,0.00021357,2]
[349971361,1737541864117,-786.57707208,0.00021357,2]
[349971362,1737541864879,-250.0,0.00018931,2]
[349971363,1737541864889,-500.0,0.00019437,2]
[349971364,1737541864900,-500.0,0.00019438,2]
[349971365,1737541864910,-500.0,0.00019438,2]
[349971366,1737541864919,-500.0,0.00019438,2]
[349971367,1737541864929,-500.0,0.00019438,2]
[349971368,1737541864939,-500.0,0.00019439,2]
[349971369,1737541864949,-500.0,0.00019712,2]
[349971370,1737541864959,-424.72,0.00019712,2]
[349971371,1737541864968,-327.59753968,0.00019713,2]
[349971372,1737541864981,-172.40246032,0.00019713,2]
[349971373,1737541864991,-500.0,0.00019986,2]
[349971374,1737541865000,-500.0,0.0002026,2]
[349971375,1737541865010,-500.0,0.00020534,2]
[349971376,1737541865019,-2616.266094,0.00021357,2]
[349971377,1737541865039,-500.0,0.00020808,2]
[349971378,1737541865049,-534.13966815,0.00021357,2]
[349971379,1737541865066,-332.987499,0.00021357,2]
[349971380,1737541865079,-566.40673885,0.00021357,2]
[349971381,1737541865092,-500.0,0.00021357,2]
[349971382,1737541865101,-3481.27469681,0.00021357,2]
[349971383,1737541865115,-3826.06530319,0.00021357,2]
[349971384,1737541865124,-822.78,0.00021357,2]
[349971385,1737541865134,-985.38,0.00021357,2]
[349971386,1737541865143,-500.0,0.00021357,2]
[349971387,1737541865153,-764.97,0.00021357,2]
[349971388,1737541865163,-617.66,0.00021357,2]
[349971389,1737541865172,-2071.46,0.00021357,2]
[349971390,1737541865182,-500.0,0.00021357,2]
[349971391,1737541865192,-521.86,0.00021357,2]
[349971392,1737541865201,-500.0,0.00021357,2]
[349971393,1737541865210,-934.2,0.00021357,2]
[349971394,1737541865219,-500.0,0.00021357,2]
[349971395,1737541865229,-500.0,0.00021357,2]
[349971396,1737541865238,-1295.45,0.00021357,2]
[349971397,1737541865248,-1443.13,0.00021357,2]
[349971398,1737541865258,-500.0,0.00021357,2]
[349971399,1737541865269,-1043.46,0.00021357,2]
[349971400,1737541865278,-1000.0,0.00021357,2]
[349971401,1737541865287,-706.31,0.00021357,2]
[349971402,1737541865296,-734.78,0.00021357,2]
[349971403,1737541865304,-500.0,0.00021357,2]
[349971404,1737541865312,-1024.34,0.00021357,2]
[349971405,1737541865319,-2026.46,0.00021357,2]
[349971406,1737541865327,-1666.71,0.00021357,2]
[349971407,1737541865338,-856.41,0.00021357,2]
[349971408,1737541865347,-500.0,0.00021357,2]
[349971409,1737541865357,-500.0,0.00021357,2]
[349971410,1737541865366,-797.53,0.00021357,2]
[349971411,1737541865377,-500.0,0.00021357,2]
[349971412,1737541865386,-500.0,0.00021357,2]
[349971413,1737541865396,-500.0,0.00021358,2]
[349971414,1737541865406,-500.0,0.00021358,2]
[349971415,1737541865415,-241.95654461,0.00021358,2]
[349971416,1737541865424,-504.37,0.00021358,2]
[349971417,1737541865434,-202.887859,0.00021358,2]
[349971418,1737541865444,-151.0,0.00021358,2]
[349971419,1737541865454,-250.0,0.00021379,2]
[349971420,1737541865465,-1697.93934702,0.00021386,2]
[349971421,1737541865475,-1284.0,0.000214,2]
[349971422,1737541865485,-758.11,0.00021411,7]
[349971423,1737541865497,-758.11,0.00021411,7]
[349971424,1737541865507,-758.11,0.00021411,7]
[349971425,1737541865516,-758.11,0.00021411,7]
[349971426,1737541865526,-223.54,0.00021415,2]
[349971427,1737541865538,-189.28735627,0.00021421,2]
[349971428,1737541865548,-153.086133,0.00021432,2]
[349971429,1737541865557,-464.27,0.0002144,2]
[349971430,1737541865567,-205.78419618,0.00021456,2]
[349971431,1737541865577,-500.0,0.00021473,2]
[349971432,1737541865589,-150.0,0.000215,4]
[349971433,1737541865599,-654.69,0.00021531,2]
[349971434,1737541865608,-1545.87,0.00021531,2]
[349971435,1737541865618,-1380.69,0.00021531,2]
[349971436,1737541865627,-907.88,0.00021531,2]
[349971437,1737541865637,-1850.42,0.00021531,2]
[349971438,1737541865783,-1516.91,0.00021531,2]
[349971439,1737541865793,-953.88,0.00021531,2]
[349971440,1737541865803,-1013.98,0.00021531,2]
[349971441,1737541865815,-722.46,0.00021531,2]
[349971442,1737541865827,-1164.88,0.00021531,2]
[349971443,1737541865839,-902.13,0.00021531,2]
[349971444,1737541865849,-1003.6,0.00021531,2]
[349971445,1737541865859,-656.77,0.00021531,2]
[349971446,1737541865870,-1484.76,0.00021531,2]
[349971447,1737541865880,-500.0,0.00021531,2]
[349971448,1737541865889,-1336.41,0.00021531,2]
[349971449,1737541865901,-2006.54,0.00021531,2]
[349971450,1737541865911,-500.0,0.00021531,2]
[349971451,1737541865920,-677.86,0.00021531,2]
[349971452,1737541865931,-886.2,0.00021531,2]
[349971453,1737541865941,-2151.01,0.00021531,2]
[349971454,1737541865951,-2824.22,0.00021531,2]
[349971455,1737541865961,-3414.46,0.00021531,2]
[349971456,1737541865971,-841.92,0.00021531,2]
[349971457,1737541865981,-500.0,0.00021531,2]
[349971458,1737541865991,-944.29,0.00021531,2]
[349971459,1737541866001,-1011.31,0.00021531,2]
[349971460,1737541866010,-886.83,0.00021531,2]
[349971461,1737541866019,-956.347784,0.00021531,2]
[349971462,1737541866029,-3466.56,0.00021531,2]
[349971463,1737541866039,-1869.72,0.00021531,2]
[349971464,1737541866048,-500.0,0.00021531,2]
[349971465,1737541866058,-1416.25,0.00021531,2]
[349971466,1737541866067,-689.18,0.00021531,2]
[349971467,1737541866077,-1332.39,0.00021531,2]
[349971468,1737541866087,-2217.4,0.00021531,2]
[349971469,1737541866097,-806.82,0.00021531,2]
[349971470,1737541866107,-500.0,0.00021531,2]
[349971471,1737541866117,-1001.78,0.00021531,2]
[349971472,1737541866127,-1215.48,0.00021531,2]
[349971473,1737541866136,-500.0,0.00021531,2]
[349971474,1737541866146,-2702.1,0.00021531,2]
[349971475,1737541866156,-835.57,0.00021531,2]
[349971476,1737541866165,-167.06039711,0.00021552,2]
[349971477,1737541866174,-162.4279467,0.00021558,2]
[349971478,1737541866184,-2109.0,0.0002156,2]
[349971479,1737541866195,-205.78419618,0.00021567,2]
[349971480,1737541866204,-169.32,0.00021584,2]
[349971481,1737541866214,-151.0,0.000216,2]
[349971482,1737541866223,-864.4920526,0.00021604,2]
[349971483,1737541866233,-472.86792644,0.00021615,2]
[349971484,1737541866243,-150.0,0.00021621,2]
[349971485,1737541866252,-778.51,0.00021629,2]
[349971486,1737541866262,-500.0,0.0002163,2]
[349971487,1737541866271,-500.0,0.0002163,2]
[349971488,1737541866280,-500.0,0.0002163,2]
[349971489,1737541866290,-655.58,0.0002163,2]
[349971490,1737541866299,-720.75,0.0002163,2]
[349971491,1737541866308,-500.0,0.0002163,2]
[349971492,1737541866318,-510.91,0.0002163,2]
[349971493,1737541866327,-500.0,0.0002163,2]
[349971494,1737541866337,-500.0,0.0002163,2]
[349971495,1737541866347,-500.0,0.0002163,2]
[349971496,1737541866356,-589.74,0.0002163,2]
[349971497,1737541866366,-708.62,0.0002163,2]
[349971498,1737541866376,-500.0,0.0002163,2]
[349971499,1737541866387,-625.44,0.0002163,2]
[349971500,1737541866397,-500.0,0.0002163,2]
[349971501,1737541866407,-500.0,0.0002163,2]
[349971502,1737541866416,-500.0,0.0002163,2]
[349971503,1737541866426,-550.34,0.0002163,2]
[349971504,1737541866435,-500.0,0.0002163,2]
[349971505,1737541866444,-834.71,0.0002163,2]
[349971506,1737541866454,-500.0,0.0002163,2]
[349971507,1737541866463,-902.73,0.0002163,2]
[349971508,1737541866472,-872.01,0.0002163,2]
[349971509,1737541866482,-500.0,0.0002163,2]
[349971510,1737541866491,-619.72,0.0002163,2]
[349971511,1737541866500,-500.0,0.0002163,2]
[349971512,1737541866510,-876.53,0.0002163,2]
[349971513,1737541866519,-500.0,0.0002163,2]
[349971514,1737541866529,-613.46,0.0002163,2]
[349971515,1737541866539,-199.314792,0.0002163,2]
[349971516,1737541866548,-722.25,0.0002163,2]
[349971517,1737541866557,-500.0,0.0002163,2]
[349971518,1737541866566,-668.05,0.0002163,2]
[349971519,1737541866575,-151.0,0.0002163,2]
[349971520,1737541866585,-675.35,0.0002163,2]
[349971521,1737541866594,-677.79,0.0002163,2]
[349971522,1737541866604,-544.94,0.0002163,2]
[349971523,1737541866613,-553.72,0.0002163,2]
[349971524,1737541866623,-603.56,0.0002163,2]
[349971525,1737541866632,-783.76,0.0002163,2]
[349971526,1737541866642,-500.0,0.0002163,2]
[349971527,1737541866652,-575.54,0.0002163,2]
[349971528,1737541866663,-1909.22,0.0002163,2]
[349971529,1737541866673,-1033.66,0.0002163,2]
[349971530,1737541866683,-151.0,0.0002163,2]
[349971531,1737541866692,-1473.85,0.0002163,2]
[349971532,1737541866701,-693.15,0.0002163,2]
[349971533,1737541866710,-1568.94,0.0002163,2]
[349971534,1737541866719,-551.67,0.0002163,2]
[349971535,1737541866729,-3589.15,0.0002163,2]
[349971536,1737541866739,-638.09,0.0002163,2]
[349971537,1737541866749,-1417.99,0.0002163,2]
[349971538,1737541866764,-500.0,0.0002163,2]
[349971539,1737541866775,-2387.18,0.0002163,2]
[349971540,1737541866784,-3484.74,0.0002163,2]
[349971541,1737541866794,-1031.11,0.0002163,2]
[349971542,1737541866804,-1387.85,0.0002163,2]
[349971543,1737541866813,-500.0,0.0002163,2]
[349971544,1737541866824,-2015.76,0.0002163,2]
[349971545,1737541866834,-590.43,0.0002163,2]
[349971546,1737541866843,-500.0,0.0002163,2]
[349971547,1737541866852,-2072.9,0.0002163,2]
[349971548,1737541866864,-1138.61,0.0002163,2]
[349971549,1737541866876,-2193.32,0.0002163,2]
[349971550,1737541866886,-1037.28,0.0002163,2]
[349971551,1737541866897,-1217.24,0.0002163,2]
[349971552,1737541866908,-589.16,0.0002163,2]
[349971553,1737541866918,-500.0,0.0002163,2]